[Event "*** Titled Tuesday Blitz"]
[Site "Chess.com"]
[Date "2020.05.05"]
[Round "7"]
[White "maciek_92"]
[Black "AleksanderHnydiuk"]
[Result "1/2-1/2"]
[WhiteElo "2716"]
[BlackElo "2564"]
[TimeControl "180+1"]
[EndTime "11:19:25 PDT"]
[Termination "Game drawn by repetition"]

1. e4 {[%clk 0:03:00.9]} 1... c5 {[%clk 0:02:57.2]} 2. Nf3 {[%clk 0:03:00.8]}
2... e6 {[%clk 0:02:57.4]} 3. d4 {[%clk 0:03:01.3]} 3... cxd4 {[%clk 0:02:57.6]}
4. Nxd4 {[%clk 0:03:02.2]} 4... Nc6 {[%clk 0:02:58]} 5. Nc3 {[%clk 0:03:02.8]}
5... a6 {[%clk 0:02:57.9]} 6. Be2 {[%clk 0:03:01]} 6... d6 {[%clk 0:02:57.2]} 7.
Be3 {[%clk 0:03:01.1]} 7... Nf6 {[%clk 0:02:57.2]} 8. O-O {[%clk 0:03:01.7]}
8... Be7 {[%clk 0:02:56.3]} 9. f4 {[%clk 0:03:02.2]} 9... Bd7 {[%clk 0:02:54.4]}
10. Qe1 {[%clk 0:02:48.6]} 10... O-O {[%clk 0:02:51.4]} 11. Qg3 {[%clk
0:02:43.8]} 11... Nxd4 {[%clk 0:02:50.7]} 12. Bxd4 {[%clk 0:02:43.7]} 12... Bc6
{[%clk 0:02:44.9]} 13. Bd3 {[%clk 0:02:42.1]} 13... b5 {[%clk 0:02:43.2]} 14. a3
{[%clk 0:02:36.5]} 14... Qb8 {[%clk 0:02:40]} 15. b4 {[%clk 0:02:07.7]} 15... g6
{[%clk 0:02:27.1]} 16. f5 {[%clk 0:01:53.2]} 16... e5 {[%clk 0:02:09.3]} 17. Be3
{[%clk 0:01:46.2]} 17... Qb7 {[%clk 0:02:09.1]} 18. Bh6 {[%clk 0:01:38.9]} 18...
Rfd8 {[%clk 0:01:58.1]} 19. fxg6 {[%clk 0:01:38.3]} 19... hxg6 {[%clk 0:01:50]}
20. Rae1 {[%clk 0:00:49.3]} 20... Rac8 {[%clk 0:01:49.1]} 21. Nd5 {[%clk
0:00:43.2]} 21... Bxd5 {[%clk 0:01:31.6]} 22. exd5 {[%clk 0:00:44.1]} 22... Rc3
{[%clk 0:01:29.9]} 23. Rf3 {[%clk 0:00:18.9]} 23... Nh5 {[%clk 0:01:06.1]} 24.
Qf2 {[%clk 0:00:11.9]} 24... Bf8 {[%clk 0:00:58.3]} 25. Bg5 {[%clk 0:00:10.8]}
25... Rdc8 {[%clk 0:00:54.6]} 26. Rf1 {[%clk 0:00:10.8]} 26... R8c7 {[%clk
0:00:43.3]} 27. Bxg6 {[%clk 0:00:10.1]} 27... Rxf3 {[%clk 0:00:41.1]} 28. Qxf3
{[%clk 0:00:11]} 28... Nf4 {[%clk 0:00:32.6]} 29. Be4 {[%clk 0:00:10.8]} 29...
Bg7 {[%clk 0:00:29.1]} 30. Bxf4 {[%clk 0:00:10.9]} 30... exf4 {[%clk 0:00:29]}
31. Qxf4 {[%clk 0:00:11.3]} 31... Qb6+ {[%clk 0:00:29.1]} 32. Kh1 {[%clk
0:00:10.9]} 32... Qd4 {[%clk 0:00:29.2]} 33. h4 {[%clk 0:00:07]} 33... Re7
{[%clk 0:00:26.9]} 34. Bd3 {[%clk 0:00:06.3]} 34... Qxf4 {[%clk 0:00:26.4]} 35.
Rxf4 {[%clk 0:00:07.2]} 35... Re1+ {[%clk 0:00:26.4]} 36. Rf1 {[%clk 0:00:07.8]}
36... Rxf1+ {[%clk 0:00:25.4]} 37. Bxf1 {[%clk 0:00:08.7]} 37... Bb2 {[%clk
0:00:25.5]} 38. a4 {[%clk 0:00:08.7]} 38... bxa4 {[%clk 0:00:23.9]} 39. Bxa6
{[%clk 0:00:09.2]} 39... Bc3 {[%clk 0:00:20.1]} 40. Bc4 {[%clk 0:00:09.1]} 40...
Bxb4 {[%clk 0:00:19.5]} 41. Kh2 {[%clk 0:00:05.2]} 41... Kg7 {[%clk 0:00:19.6]}
42. g4 {[%clk 0:00:04.8]} 42... Be1 {[%clk 0:00:17]} 43. Kh3 {[%clk 0:00:05.1]}
43... Kf6 {[%clk 0:00:16.7]} 44. g5+ {[%clk 0:00:04.7]} 44... Kf5 {[%clk
0:00:15.5]} 45. Ba2 {[%clk 0:00:01.8]} 45... a3 {[%clk 0:00:14.6]} 46. c4 {[%clk
0:00:02.1]} 46... Bf2 {[%clk 0:00:14.8]} 47. Bb3 {[%clk 0:00:02.2]} 47... Kf4
{[%clk 0:00:12.2]} 48. Ba2 {[%clk 0:00:02.2]} 48... Kf5 {[%clk 0:00:12.2]} 49.
Bb3 {[%clk 0:00:02.5]} 49... Kf4 {[%clk 0:00:12.5]} 50. Ba2 {[%clk 0:00:02.5]}
50... Kf5 {[%clk 0:00:12.9]} 1/2-1/2

[Event "*** Titled Tuesday Blitz"]
[Site "Chess.com"]
[Date "2020.05.05"]
[Round "7"]
[White "DrVitman"]
[Black "Rud_Makarian"]
[Result "1-0"]
[WhiteElo "2536"]
[BlackElo "2733"]
[TimeControl "180+1"]
[EndTime "11:19:26 PDT"]
[Termination "DrVitman won by resignation"]

1. e4 {[%clk 0:03:00.9]} 1... e5 {[%clk 0:02:54.1]} 2. Nf3 {[%clk 0:03:00]} 2...
Nc6 {[%clk 0:02:54.2]} 3. Bb5 {[%clk 0:02:59.9]} 3... Nf6 {[%clk 0:02:53.9]} 4.
Bxc6 {[%clk 0:02:59.5]} 4... bxc6 {[%clk 0:02:51]} 5. d3 {[%clk 0:02:59.1]} 5...
d6 {[%clk 0:02:45.7]} 6. h3 {[%clk 0:02:57]} 6... Be7 {[%clk 0:02:45.8]} 7. Nbd2
{[%clk 0:02:55.2]} 7... O-O {[%clk 0:02:46.1]} 8. Qe2 {[%clk 0:02:55.4]} 8... c5
{[%clk 0:02:45.5]} 9. Nc4 {[%clk 0:02:54.1]} 9... h6 {[%clk 0:02:41.4]} 10. g4
{[%clk 0:02:51.2]} 10... Nh7 {[%clk 0:02:24.5]} 11. b3 {[%clk 0:02:46.3]} 11...
Ng5 {[%clk 0:02:24]} 12. Nxg5 {[%clk 0:02:43.3]} 12... Bxg5 {[%clk 0:02:23.5]}
13. Bxg5 {[%clk 0:02:37.6]} 13... hxg5 {[%clk 0:02:24.4]} 14. f3 {[%clk
0:02:31.6]} 14... Be6 {[%clk 0:02:19.3]} 15. Ne3 {[%clk 0:02:28.8]} 15... a5
{[%clk 0:02:17.1]} 16. a4 {[%clk 0:02:28.5]} 16... c6 {[%clk 0:02:14.9]} 17. Qh2
{[%clk 0:02:23.9]} 17... Qf6 {[%clk 0:02:06.8]} 18. Ke2 {[%clk 0:02:21.7]} 18...
d5 {[%clk 0:01:52.1]} 19. h4 {[%clk 0:02:17]} 19... gxh4 {[%clk 0:01:52]} 20.
Qxh4 {[%clk 0:02:17.9]} 20... Qxh4 {[%clk 0:01:50.8]} 21. Rxh4 {[%clk
0:02:18.8]} 21... f6 {[%clk 0:01:48.2]} 22. Rah1 {[%clk 0:01:57.9]} 22... Kf7
{[%clk 0:01:47.9]} 23. Nf5 {[%clk 0:01:53]} 23... Bxf5 {[%clk 0:01:44.8]} 24.
gxf5 {[%clk 0:01:53.9]} 24... Rab8 {[%clk 0:01:41.3]} 25. Kd2 {[%clk 0:01:52.2]}
25... c4 {[%clk 0:01:36.5]} 26. exd5 {[%clk 0:01:28.3]} 26... cxd3 {[%clk
0:00:53.8]} 27. dxc6 {[%clk 0:01:26]} 27... Rfc8 {[%clk 0:00:50.5]} 28. Rc4
{[%clk 0:01:22.1]} 28... dxc2 {[%clk 0:00:50]} 29. Kxc2 {[%clk 0:01:23]} 29...
Rb6 {[%clk 0:00:49]} 30. Rd1 {[%clk 0:01:13.3]} 30... Rbxc6 {[%clk 0:00:46.7]}
31. Kc3 {[%clk 0:01:12.5]} 31... g6 {[%clk 0:00:26]} 32. Rd7+ {[%clk 0:00:45.6]}
32... Ke8 {[%clk 0:00:25.7]} 33. Ra7 {[%clk 0:00:45.2]} 33... gxf5 {[%clk
0:00:24.6]} 34. Rxa5 {[%clk 0:00:44.8]} 34... Kd7 {[%clk 0:00:23.1]} 35. Ra7+
{[%clk 0:00:39.5]} 35... Ke6 {[%clk 0:00:22.9]} 36. a5 {[%clk 0:00:39.7]} 36...
e4 {[%clk 0:00:20.2]} 37. fxe4 {[%clk 0:00:37.7]} 37... fxe4 {[%clk 0:00:19.9]}
38. Rxc6+ {[%clk 0:00:36.6]} 38... Rxc6+ {[%clk 0:00:19.4]} 39. Kd4 {[%clk
0:00:36.9]} 39... f5 {[%clk 0:00:19.8]} 40. b4 {[%clk 0:00:23.6]} 40... Rd6+
{[%clk 0:00:18.5]} 41. Ke3 {[%clk 0:00:23.4]} 41... Rd3+ {[%clk 0:00:18.2]} 42.
Ke2 {[%clk 0:00:23.9]} 42... f4 {[%clk 0:00:17.8]} 43. a6 {[%clk 0:00:20.6]}
43... Ra3 {[%clk 0:00:17.9]} 44. b5 {[%clk 0:00:18.4]} 44... Ra2+ {[%clk
0:00:18.4]} 45. Ke1 {[%clk 0:00:18.1]} 45... f3 {[%clk 0:00:17.5]} 46. Ra8
{[%clk 0:00:13]} 46... Kd5 {[%clk 0:00:15.9]} 47. a7 {[%clk 0:00:11]} 47... e3
{[%clk 0:00:07.5]} 48. Rd8+ {[%clk 0:00:09.7]} 48... Ke4 {[%clk 0:00:07.9]} 49.
a8=Q+ {[%clk 0:00:08.6]} 49... Rxa8 {[%clk 0:00:07.6]} 50. Rxa8 {[%clk
0:00:08.1]} 1-0

[Event "*** Titled Tuesday Blitz"]
[Site "Chess.com"]
[Date "2020.05.05"]
[Round "7"]
[White "BabyBoss31"]
[Black "White_Ghost"]
[Result "1-0"]
[WhiteElo "2311"]
[BlackElo "2453"]
[TimeControl "180+1"]
[EndTime "11:19:30 PDT"]
[Termination "BabyBoss31 won by checkmate"]

1. d4 {[%clk 0:03:00.9]} 1... d5 {[%clk 0:02:56.4]} 2. c4 {[%clk 0:03:01]} 2...
c6 {[%clk 0:02:56.4]} 3. Nf3 {[%clk 0:02:56.3]} 3... Nf6 {[%clk 0:02:55.3]} 4.
Nc3 {[%clk 0:02:55.7]} 4... dxc4 {[%clk 0:02:50.5]} 5. a4 {[%clk 0:02:54.2]}
5... e6 {[%clk 0:02:50.7]} 6. e3 {[%clk 0:02:49.3]} 6... c5 {[%clk 0:02:49.4]}
7. Bxc4 {[%clk 0:02:46.7]} 7... Nc6 {[%clk 0:02:49.9]} 8. O-O {[%clk 0:02:42.9]}
8... cxd4 {[%clk 0:02:49.9]} 9. exd4 {[%clk 0:02:38.9]} 9... Be7 {[%clk
0:02:49.7]} 10. Qe2 {[%clk 0:02:34.8]} 10... O-O {[%clk 0:02:48.1]} 11. Rd1
{[%clk 0:02:32]} 11... Nb4 {[%clk 0:02:48.1]} 12. Bg5 {[%clk 0:02:27.8]} 12...
h6 {[%clk 0:02:47]} 13. Bxf6 {[%clk 0:02:19.8]} 13... Bxf6 {[%clk 0:02:47.9]}
14. Ne4 {[%clk 0:02:20.2]} 14... Be7 {[%clk 0:02:47.9]} 15. Ne5 {[%clk
0:02:16.2]} 15... b6 {[%clk 0:02:45.9]} 16. Qh5 {[%clk 0:01:43.6]} 16... Bb7
{[%clk 0:02:40.7]} 17. Nxf7 {[%clk 0:01:22.6]} 17... Rxf7 {[%clk 0:02:38]} 18.
Bxe6 {[%clk 0:01:22.6]} 18... Qf8 {[%clk 0:02:23.3]} 19. d5 {[%clk 0:01:08.7]}
19... Rd8 {[%clk 0:02:08]} 20. d6 {[%clk 0:00:41]} 20... Bg5 {[%clk 0:01:28.4]}
21. Nxg5 {[%clk 0:00:27.3]} 21... hxg5 {[%clk 0:01:29.3]} 22. Qxg5 {[%clk
0:00:27.3]} 22... Rxd6 {[%clk 0:00:48.3]} 23. Bxf7+ {[%clk 0:00:24.6]} 23...
Kxf7 {[%clk 0:00:48.3]} 24. Qf4+ {[%clk 0:00:17.1]} 24... Rf6 {[%clk 0:00:46.6]}
25. Qc7+ {[%clk 0:00:16.8]} 25... Kg8 {[%clk 0:00:45.7]} 26. Rd8 {[%clk
0:00:16.6]} 26... Bd5 {[%clk 0:00:30.9]} 27. Rxf8+ {[%clk 0:00:13.2]} 27... Rxf8
{[%clk 0:00:31.8]} 28. Qxa7 {[%clk 0:00:12]} 28... Nd3 {[%clk 0:00:25.2]} 29. f3
{[%clk 0:00:12.3]} 29... Nf4 {[%clk 0:00:22.4]} 30. Qxb6 {[%clk 0:00:11.8]}
30... Bf7 {[%clk 0:00:21.7]} 31. Qd6 {[%clk 0:00:10.3]} 31... Ne6 {[%clk
0:00:18.1]} 32. a5 {[%clk 0:00:10.6]} 32... Rd8 {[%clk 0:00:18]} 33. Qe5 {[%clk
0:00:10.6]} 33... Rd2 {[%clk 0:00:11.3]} 34. a6 {[%clk 0:00:09.6]} 34... Nd4
{[%clk 0:00:11.8]} 35. a7 {[%clk 0:00:09.1]} 35... Ne2+ {[%clk 0:00:11.3]} 36.
Kh1 {[%clk 0:00:06.7]} 36... Kh7 {[%clk 0:00:08.8]} 37. a8=Q {[%clk 0:00:06.2]}
37... Rd7 {[%clk 0:00:05.6]} 38. h3 {[%clk 0:00:06.1]} 38... Nd4 {[%clk
0:00:05.6]} 39. Qae4+ {[%clk 0:00:05.5]} 39... Bg6 {[%clk 0:00:05.1]} 40. Q4xd4
{[%clk 0:00:05.5]} 40... Rf7 {[%clk 0:00:04.6]} 41. Qh4+ {[%clk 0:00:05.3]}
41... Kg8 {[%clk 0:00:05.2]} 42. Ra8+ {[%clk 0:00:05.5]} 42... Rf8 {[%clk
0:00:06.1]} 43. Rxf8+ {[%clk 0:00:05]} 43... Kxf8 {[%clk 0:00:07]} 44. Qee7+
{[%clk 0:00:05.3]} 44... Kg8 {[%clk 0:00:07.9]} 45. Qhg5 {[%clk 0:00:05.6]}
45... Kh7 {[%clk 0:00:07.8]} 46. Qxg6+ {[%clk 0:00:06.1]} 46... Kxg6 {[%clk
0:00:08]} 47. b4 {[%clk 0:00:07]} 47... Kh6 {[%clk 0:00:08.9]} 48. b5 {[%clk
0:00:07.9]} 48... Kh5 {[%clk 0:00:09.4]} 49. b6 {[%clk 0:00:08.8]} 49... g5
{[%clk 0:00:09.8]} 50. b7 {[%clk 0:00:09]} 50... g4 {[%clk 0:00:10.7]} 51. Qh7+
{[%clk 0:00:09.2]} 51... Kg5 {[%clk 0:00:10.9]} 52. h4+ {[%clk 0:00:09.7]} 52...
Kf4 {[%clk 0:00:11.8]} 53. Qf7+ {[%clk 0:00:09.1]} 53... Kg3 {[%clk 0:00:12.7]}
54. Qc7+ {[%clk 0:00:08.8]} 54... Kxh4 {[%clk 0:00:13.6]} 55. Qh2+ {[%clk
0:00:08.4]} 55... Kg5 {[%clk 0:00:12.8]} 56. b8=Q {[%clk 0:00:08.9]} 56... Kf5
{[%clk 0:00:13.7]} 57. Qbe5+ {[%clk 0:00:08.9]} 57... Kg6 {[%clk 0:00:11.8]} 58.
Qe6+ {[%clk 0:00:09.4]} 58... Kg5 {[%clk 0:00:11.9]} 59. Qhe5+ {[%clk 0:00:09]}
59... Kh4 {[%clk 0:00:11.8]} 60. Qh6# {[%clk 0:00:09.3]} 1-0

[Event "*** Titled Tuesday Blitz"]
[Site "Chess.com"]
[Date "2020.05.05"]
[Round "7"]
[White "Harry_Rakkel"]
[Black "Noam_Vitenberg"]
[Result "0-1"]
[WhiteElo "2618"]
[BlackElo "2503"]
[TimeControl "180+1"]
[EndTime "11:19:31 PDT"]
[Termination "Noam_Vitenberg won on time"]

1. d4 {[%clk 0:03:00.9]} 1... d5 {[%clk 0:02:58.6]} 2. Bf4 {[%clk 0:02:59.8]}
2... Nf6 {[%clk 0:02:57.2]} 3. e3 {[%clk 0:02:59.5]} 3... c5 {[%clk 0:02:55.6]}
4. c3 {[%clk 0:02:58.7]} 4... Nc6 {[%clk 0:02:53]} 5. Nf3 {[%clk 0:02:56.9]}
5... Qb6 {[%clk 0:02:49.6]} 6. Qb3 {[%clk 0:02:55.7]} 6... c4 {[%clk 0:02:48.3]}
7. Qxb6 {[%clk 0:02:55]} 7... axb6 {[%clk 0:02:47.8]} 8. a3 {[%clk 0:02:54.6]}
8... b5 {[%clk 0:02:48]} 9. Ne5 {[%clk 0:02:54.3]} 9... e6 {[%clk 0:02:39.8]}
10. f3 {[%clk 0:02:10]} 10... Nh5 {[%clk 0:02:26.1]} 11. Nxc6 {[%clk 0:01:59]}
11... bxc6 {[%clk 0:02:12.7]} 12. Be5 {[%clk 0:01:57.9]} 12... f6 {[%clk
0:02:10]} 13. Bc7 {[%clk 0:01:57.2]} 13... Ra7 {[%clk 0:01:56.7]} 14. Bb6 {[%clk
0:01:53.9]} 14... Ra6 {[%clk 0:01:55.8]} 15. Bc5 {[%clk 0:01:53.6]} 15... Bxc5
{[%clk 0:01:55]} 16. dxc5 {[%clk 0:01:53.5]} 16... g6 {[%clk 0:01:50.1]} 17. Nd2
{[%clk 0:01:44.4]} 17... e5 {[%clk 0:01:46.4]} 18. Be2 {[%clk 0:00:43.4]} 18...
Kf7 {[%clk 0:01:44.1]} 19. f4 {[%clk 0:00:42.6]} 19... exf4 {[%clk 0:01:25.3]}
20. Bxh5 {[%clk 0:00:41.3]} 20... fxe3 {[%clk 0:01:25]} 21. Nf3 {[%clk
0:00:41.9]} 21... gxh5 {[%clk 0:01:24.2]} 22. Nd4 {[%clk 0:00:39.8]} 22... Rg8
{[%clk 0:01:20.7]} 23. g3 {[%clk 0:00:27]} 23... h4 {[%clk 0:01:15.7]} 24. Ke2
{[%clk 0:00:26.6]} 24... Re8 {[%clk 0:01:00.4]} 25. Raf1 {[%clk 0:00:18.2]}
25... Bg4+ {[%clk 0:00:57.9]} 26. Ke1 {[%clk 0:00:18.7]} 26... Re4 {[%clk
0:00:54.3]} 27. h3 {[%clk 0:00:17]} 27... hxg3 {[%clk 0:00:44.8]} 28. Rfg1
{[%clk 0:00:14.7]} 28... Bh5 {[%clk 0:00:30.4]} 29. Rxg3 {[%clk 0:00:14.1]}
29... b4 {[%clk 0:00:30]} 30. Rhg1 {[%clk 0:00:12.5]} 30... Bg6 {[%clk
0:00:29.3]} 31. axb4 {[%clk 0:00:10.4]} 31... Ra2 {[%clk 0:00:27.2]} 32. R1g2
{[%clk 0:00:08]} 32... f5 {[%clk 0:00:22.2]} 33. Rf3 {[%clk 0:00:06.4]} 33...
Kf6 {[%clk 0:00:18.2]} 34. h4 {[%clk 0:00:04.8]} 34... f4 {[%clk 0:00:18.2]} 35.
Rg4 {[%clk 0:00:03.5]} 35... Ra1+ {[%clk 0:00:12.9]} 36. Ke2 {[%clk 0:00:03.4]}
36... Bh5 {[%clk 0:00:13]} 37. Rg5 {[%clk 0:00:03.1]} 37... Bxf3+ {[%clk
0:00:12.8]} 38. Kxf3 {[%clk 0:00:03.2]} 38... Rf1+ {[%clk 0:00:12.9]} 39. Ke2
{[%clk 0:00:03.2]} 39... Rf2+ {[%clk 0:00:12.8]} 40. Ke1 {[%clk 0:00:03.8]}
40... Rxb2 {[%clk 0:00:10.8]} 41. Rf5+ {[%clk 0:00:04]} 41... Kg6 {[%clk
0:00:10]} 42. Rg5+ {[%clk 0:00:04.2]} 42... Kf7 {[%clk 0:00:08.6]} 43. Rf5+
{[%clk 0:00:04.4]} 43... Ke7 {[%clk 0:00:07.9]} 44. Nxc6+ {[%clk 0:00:04.5]}
44... Ke6 {[%clk 0:00:08.1]} 45. Rh5 {[%clk 0:00:02.9]} 45... f3 {[%clk
0:00:06.4]} 46. Rh6+ {[%clk 0:00:02.6]} 46... Kd7 {[%clk 0:00:05.5]} 47. Rd6+
{[%clk 0:00:01.5]} 47... Kc7 {[%clk 0:00:04.9]} 48. Kd1 {[%clk 0:00:01.6]} 48...
e2+ {[%clk 0:00:04.2]} 0-1

[Event "*** Titled Tuesday Blitz"]
[Site "Chess.com"]
[Date "2020.05.05"]
[Round "7"]
[White "Maksimus1998"]
[Black "dennisodessa"]
[Result "1/2-1/2"]
[WhiteElo "2465"]
[BlackElo "2306"]
[TimeControl "180+1"]
[EndTime "11:19:31 PDT"]
[Termination "Game drawn by repetition"]

1. c4 {[%clk 0:03:00.9]} 1... e6 {[%clk 0:03:00.9]} 2. Nc3 {[%clk 0:03:00.5]}
2... Nf6 {[%clk 0:02:59.2]} 3. e4 {[%clk 0:03:00.2]} 3... d5 {[%clk 0:02:57.6]}
4. e5 {[%clk 0:02:59.6]} 4... d4 {[%clk 0:02:57.2]} 5. exf6 {[%clk 0:02:59.8]}
5... dxc3 {[%clk 0:02:57.2]} 6. bxc3 {[%clk 0:03:00.7]} 6... Qxf6 {[%clk
0:02:56]} 7. Bd3 {[%clk 0:03:01.2]} 7... c5 {[%clk 0:02:51.7]} 8. Nf3 {[%clk
0:02:50]} 8... Nc6 {[%clk 0:02:49.6]} 9. Be4 {[%clk 0:02:49.3]} 9... Bd6 {[%clk
0:02:38.9]} 10. d3 {[%clk 0:02:39.7]} 10... Qxc3+ {[%clk 0:02:18.9]} 11. Bd2
{[%clk 0:02:39.6]} 11... Qb2 {[%clk 0:02:08.6]} 12. O-O {[%clk 0:02:39]} 12...
h6 {[%clk 0:02:08.3]} 13. Qe1 {[%clk 0:02:33.8]} 13... O-O {[%clk 0:01:50.6]}
14. Bc3 {[%clk 0:02:33.2]} 14... Qa3 {[%clk 0:01:50.6]} 15. Bxc6 {[%clk
0:02:27.1]} 15... bxc6 {[%clk 0:01:48.9]} 16. Ne5 {[%clk 0:02:28]} 16... Qa6
{[%clk 0:01:21.9]} 17. Qe4 {[%clk 0:02:23.2]} 17... f6 {[%clk 0:01:02.6]} 18.
Ng6 {[%clk 0:02:18]} 18... Rf7 {[%clk 0:00:54.8]} 19. Rab1 {[%clk 0:02:16]}
19... Bd7 {[%clk 0:00:48.7]} 20. Rb2 {[%clk 0:02:14.7]} 20... Rb8 {[%clk
0:00:36]} 21. Rfb1 {[%clk 0:02:11.1]} 21... Rxb2 {[%clk 0:00:35.6]} 22. Rxb2
{[%clk 0:02:12]} 22... Qa3 {[%clk 0:00:28.2]} 23. Qe1 {[%clk 0:02:11.3]} 23...
Bc8 {[%clk 0:00:23.4]} 24. h4 {[%clk 0:02:04.3]} 24... Qa6 {[%clk 0:00:22.9]}
25. h5 {[%clk 0:02:01.1]} 25... Rb7 {[%clk 0:00:22.6]} 26. Qc1 {[%clk
0:01:36.5]} 26... Rxb2 {[%clk 0:00:20.9]} 27. Qxb2 {[%clk 0:01:37.4]} 27... Kf7
{[%clk 0:00:17.5]} 28. Nh8+ {[%clk 0:01:35.2]} 28... Ke7 {[%clk 0:00:16.8]} 29.
Ng6+ {[%clk 0:01:34.6]} 29... Kf7 {[%clk 0:00:16.9]} 30. Nh8+ {[%clk 0:01:31]}
30... Ke7 {[%clk 0:00:17]} 31. Qe2 {[%clk 0:01:23.9]} 31... Qb6 {[%clk
0:00:16.2]} 32. g3 {[%clk 0:01:20.6]} 32... Qd8 {[%clk 0:00:14.9]} 33. Ng6+
{[%clk 0:01:19]} 33... Kf7 {[%clk 0:00:15.2]} 34. Qf3 {[%clk 0:01:19.3]} 34...
Bd7 {[%clk 0:00:14.5]} 35. Kg2 {[%clk 0:01:17]} 35... Kg8 {[%clk 0:00:14.1]} 36.
Qe3 {[%clk 0:00:51.5]} 36... e5 {[%clk 0:00:13.3]} 37. Nh4 {[%clk 0:00:47.4]}
37... Qe7 {[%clk 0:00:12.1]} 38. Qe4 {[%clk 0:00:44.7]} 38... Qe8 {[%clk
0:00:10.1]} 39. g4 {[%clk 0:00:44.3]} 39... Be6 {[%clk 0:00:09.3]} 40. f3 {[%clk
0:00:40.9]} 40... Qd7 {[%clk 0:00:09.4]} 41. Qe2 {[%clk 0:00:38.7]} 41... Qb7
{[%clk 0:00:09]} 42. Qe4 {[%clk 0:00:29.6]} 42... Qd7 {[%clk 0:00:07.8]} 43. Kf2
{[%clk 0:00:28.7]} 43... Bf8 {[%clk 0:00:07.4]} 44. Ng2 {[%clk 0:00:25.9]} 44...
Qb7 {[%clk 0:00:07.3]} 45. Ne3 {[%clk 0:00:25.1]} 45... Bd7 {[%clk 0:00:07.2]}
46. Kg3 {[%clk 0:00:19.1]} 46... Qb1 {[%clk 0:00:06.8]} 47. Nf5 {[%clk
0:00:17.3]} 47... Qg1+ {[%clk 0:00:05.6]} 48. Kh3 {[%clk 0:00:16.9]} 48... Qh1+
{[%clk 0:00:05.7]} 49. Kg3 {[%clk 0:00:17.2]} 49... Qg1+ {[%clk 0:00:05.8]} 50.
Kh3 {[%clk 0:00:17.8]} 50... Qh1+ {[%clk 0:00:06]} 51. Kg3 {[%clk 0:00:18]}
51... Qg1+ {[%clk 0:00:06.3]} 1/2-1/2

[Event "*** Titled Tuesday Blitz"]
[Site "Chess.com"]
[Date "2020.05.05"]
[Round "7"]
[White "RaphaeI"]
[Black "Orest_Vovk"]
[Result "1-0"]
[WhiteElo "2635"]
[BlackElo "2416"]
[TimeControl "180+1"]
[EndTime "11:19:32 PDT"]
[Termination "RaphaeI won by resignation"]

1. c4 {[%clk 0:03:00.9]} 1... g5 {[%clk 0:02:57.4]} 2. d4 {[%clk 0:02:59.2]}
2... h6 {[%clk 0:02:57.9]} 3. e4 {[%clk 0:02:59.2]} 3... Bg7 {[%clk 0:02:58.3]}
4. Nc3 {[%clk 0:02:59.6]} 4... c5 {[%clk 0:02:58.7]} 5. d5 {[%clk 0:02:57]} 5...
Bxc3+ {[%clk 0:02:59.2]} 6. bxc3 {[%clk 0:02:56.7]} 6... d6 {[%clk 0:02:52.4]}
7. h4 {[%clk 0:02:51]} 7... g4 {[%clk 0:02:48.6]} 8. h5 {[%clk 0:02:51.3]} 8...
Qa5 {[%clk 0:02:48.2]} 9. Bd2 {[%clk 0:02:25.1]} 9... Nf6 {[%clk 0:02:47.2]} 10.
Bd3 {[%clk 0:02:25.1]} 10... Nbd7 {[%clk 0:02:44.5]} 11. Ne2 {[%clk 0:02:13.4]}
11... Ne5 {[%clk 0:02:43.9]} 12. Qb1 {[%clk 0:02:05.5]} 12... Qa4 {[%clk
0:02:39.7]} 13. Bf4 {[%clk 0:01:34.3]} 13... Nxd3+ {[%clk 0:02:35.3]} 14. Qxd3
{[%clk 0:01:33.5]} 14... Nd7 {[%clk 0:02:24.7]} 15. O-O {[%clk 0:01:21.8]} 15...
b6 {[%clk 0:02:22.9]} 16. Ng3 {[%clk 0:01:14.4]} 16... Ba6 {[%clk 0:02:20.5]}
17. Qe3 {[%clk 0:01:05.6]} 17... Bxc4 {[%clk 0:02:15.2]} 18. Rfe1 {[%clk
0:01:05.2]} 18... f6 {[%clk 0:02:03.3]} 19. Nf5 {[%clk 0:00:59.9]} 19... Ne5
{[%clk 0:01:41.1]} 20. Bxe5 {[%clk 0:00:53]} 20... fxe5 {[%clk 0:01:40]} 21.
Nxh6 {[%clk 0:00:50.8]} 21... Kd7 {[%clk 0:01:36.5]} 22. Qg5 {[%clk 0:00:45.8]}
22... Kc7 {[%clk 0:01:16.5]} 23. Qxe7+ {[%clk 0:00:31.7]} 23... Qd7 {[%clk
0:01:15.9]} 24. Qxd7+ {[%clk 0:00:32]} 24... Kxd7 {[%clk 0:01:16.5]} 25. Nxg4
{[%clk 0:00:32.9]} 25... Ke7 {[%clk 0:01:11.2]} 26. h6 {[%clk 0:00:33.2]} 26...
Bb5 {[%clk 0:01:09.4]} 27. f3 {[%clk 0:00:19]} 27... Bd7 {[%clk 0:01:09.2]} 28.
Ne3 {[%clk 0:00:18.1]} 28... Rxh6 {[%clk 0:01:08.1]} 29. Kf2 {[%clk 0:00:15.7]}
29... Rah8 {[%clk 0:01:07.7]} 30. c4 {[%clk 0:00:15.8]} 30... Kd8 {[%clk
0:00:59.5]} 31. a4 {[%clk 0:00:15.8]} 31... Kc7 {[%clk 0:00:59.8]} 32. a5 {[%clk
0:00:16]} 32... b5 {[%clk 0:00:57]} 33. cxb5 {[%clk 0:00:16.2]} 33... Bxb5
{[%clk 0:00:57.6]} 34. Ng4 {[%clk 0:00:13.6]} 34... R6h7 {[%clk 0:00:53.5]} 35.
Ne3 {[%clk 0:00:13.7]} 35... Bd7 {[%clk 0:00:51.2]} 36. a6 {[%clk 0:00:12.9]}
36... Rb8 {[%clk 0:00:49.6]} 37. Rab1 {[%clk 0:00:13.1]} 37... Rb5 {[%clk
0:00:46.7]} 38. Rxb5 {[%clk 0:00:04.2]} 38... Bxb5 {[%clk 0:00:45.8]} 39. Ra1
{[%clk 0:00:04]} 39... Kb6 {[%clk 0:00:44.1]} 40. Nf5 {[%clk 0:00:04.2]} 40...
Rd7 {[%clk 0:00:24.8]} 41. g4 {[%clk 0:00:04.2]} 41... Bxa6 {[%clk 0:00:24.7]}
42. g5 {[%clk 0:00:04.3]} 42... Bc8 {[%clk 0:00:20.6]} 43. g6 {[%clk 0:00:04.4]}
43... Rd8 {[%clk 0:00:20.2]} 44. g7 {[%clk 0:00:04.8]} 44... Rg8 {[%clk
0:00:16.2]} 45. Rg1 {[%clk 0:00:04.7]} 45... Kc7 {[%clk 0:00:10.9]} 46. Ne7
{[%clk 0:00:04.9]} 46... Re8 {[%clk 0:00:08.2]} 47. g8=Q {[%clk 0:00:04.7]}
47... Rxe7 {[%clk 0:00:09.1]} 48. Rg7 {[%clk 0:00:03.2]} 48... Rxg7 {[%clk
0:00:09.3]} 49. Qxg7+ {[%clk 0:00:04.1]} 49... Bd7 {[%clk 0:00:09.6]} 50. Qf8
{[%clk 0:00:04.1]} 50... a5 {[%clk 0:00:10.5]} 51. Qa8 {[%clk 0:00:03.9]} 51...
Kb6 {[%clk 0:00:10.4]} 52. Qb8+ {[%clk 0:00:03.5]} 1-0